fUST/lending_fUST_20250715
["ID","MTS","AMOUNT","RATE_DAILY","PERIOD"]
[372077784,1752511870539,-466.59,0.00018356,2]
[372077785,1752511870549,-151.0,0.00018356,2]
[372077786,1752511870559,-460.0,0.00018356,2]
[372077787,1752511870569,-460.0,0.00018356,2]
[372077788,1752511870578,-460.0,0.00018356,2]
[372077789,1752511870587,-460.0,0.00018356,2]
[372077790,1752511870598,-460.0,0.00018356,2]
[372077791,1752511870608,-995.66,0.00018356,2]
[372077792,1752511870619,-1769.62,0.00018356,2]
[372077793,1752511870629,-460.0,0.00018356,2]
[372077794,1752511870639,-1503.39,0.00018356,2]
[372077795,1752511870648,-460.0,0.00018356,2]
[372077796,1752511870659,-460.0,0.00018356,2]
[372077797,1752511870667,-460.0,0.00018356,2]
[372077798,1752511870677,-3450.66,0.00018356,2]
[372077799,1752511870687,-460.0,0.00018356,2]
[372077800,1752511870697,-402.15681976,0.00018356,2]
[372077801,1752511870707,-460.0,0.00018356,2]
[372077802,1752511870717,-641.2,0.00018356,2]
[372077803,1752511870727,-460.0,0.00018356,2]
[372077804,1752511870737,-984.75,0.00018356,2]
[372077805,1752511870747,-250.78946978,0.00018356,2]
[372077806,1752511870757,-460.0,0.00018356,2]
[372077807,1752511870765,-866.96,0.00018356,2]
[372077808,1752511870774,-460.0,0.00018356,2]
[372077809,1752511870784,-460.0,0.00018356,2]
[372077810,1752511870794,-4200.38,0.00018356,2]
[372077811,1752511870803,-625.65,0.00018356,2]
[372077812,1752511870812,-460.0,0.00018356,2]
[372077813,1752511870823,-344.73350716,0.00018356,2]
[372077814,1752511870832,-460.0,0.00018356,2]
[372077815,1752511870842,-672.46,0.00018356,2]
[372077816,1752511870856,-460.0,0.00018356,2]
[372077817,1752511870865,-5352.17,0.00018356,2]
[372077818,1752511870997,-591.13,0.00018356,2]
[372077819,1752511871007,-833.0,0.00018356,2]
[372077820,1752511871018,-460.0,0.00018356,2]
[372077821,1752511871028,-460.0,0.00018356,2]
[372077822,1752511871039,-2751.45,0.00018356,2]
[372077823,1752511871049,-460.0,0.00018356,2]
[372077824,1752511871059,-460.0,0.00018356,2]
[372077825,1752511871068,-1439.85,0.00018356,2]
[372077826,1752511871078,-460.0,0.00018356,2]
[372077827,1752511871088,-460.0,0.00018356,2]
[372077828,1752511871099,-460.0,0.00018356,2]
[372077829,1752511871109,-460.0,0.00018356,2]
[372077830,1752511871119,-460.0,0.00018356,2]
[372077831,1752511871129,-460.0,0.00018356,2]
[372077832,1752511871138,-598.81,0.00018356,2]
[372077833,1752511871149,-460.0,0.00018356,2]
[372077834,1752511871159,-1246.23,0.00018356,2]
[372077835,1752511871169,-460.0,0.00018356,2]
[372077836,1752511871179,-531.53,0.00018356,2]
[372077837,1752511871189,-460.0,0.00018356,2]
[372077838,1752511871199,-875.62,0.00018356,2]
[372077839,1752511871209,-582.85,0.00018356,2]
[372077840,1752511871218,-849.71,0.00018356,2]
[372077841,1752511871228,-460.0,0.00018356,2]
[372077842,1752511871238,-1219.66,0.00018356,2]
[372077843,1752511871249,-564.05,0.00018356,2]
[372077844,1752511871260,-1542.37,0.00018356,2]
[372077845,1752511871270,-460.34,0.00018356,2]
[372077846,1752511871279,-460.0,0.00018356,2]
[372077847,1752511871290,-627.62,0.00018356,2]
[372077848,1752511871300,-2096.82,0.00018356,2]
[372077849,1752511871309,-744.06,0.00018356,2]
[372077850,1752511871319,-460.0,0.00018356,2]
[372077851,1752511871329,-1495.21,0.00018356,2]
[372077852,1752511871339,-460.0,0.00018356,2]
[372077853,1752511871350,-460.0,0.00018356,2]
[372077854,1752511871361,-868.51,0.00018356,2]
[372077855,1752511871371,-460.0,0.00018356,2]
[372077856,1752511871381,-460.0,0.00018356,2]
[372077857,1752511871391,-1975.74,0.00018356,2]
[372077858,1752511871401,-460.0,0.00018356,2]
[372077859,1752511871410,-460.0,0.00018356,2]
[372077860,1752511871420,-617.02,0.00018356,2]
[372077861,1752511871432,-601.39,0.00018356,2]
[372077862,1752511871442,-460.0,0.00018356,2]
[372077863,1752511871451,-460.0,0.00018356,2]
[372077864,1752511871461,-460.0,0.00018356,2]
[372077865,1752511871471,-460.0,0.00018356,2]
[372077866,1752511871482,-648.25,0.00018356,2]
[372077867,1752511871491,-159.6739465,0.00018356,2]
[372077868,1752511871501,-153.0,0.00018356,2]
[372077869,1752511871511,-159.6739465,0.00018356,2]
[372077870,1752511871520,-153.0,0.00018356,2]
[372077871,1752511871530,-159.6739465,0.00018356,2]
[372077872,1752511871542,-151.0,0.00018375,2]
[372077873,1752511871552,-370.0,0.00018385,2]
[372077874,1752511871563,-740.0,0.00018403,2]
[372077875,1752511871573,-370.0,0.00018416,2]
[372077876,1752511871583,-5929.22791842,0.00018452,2]
[372077877,1752511871593,-370.0,0.00018468,2]
[372077878,1752511871605,-647.0,0.00018511,2]
[372077879,1752511871615,-2154.0,0.00018511,2]
[372077880,1752511871626,-968.0,0.00018511,2]
[372077881,1752511871639,-370.0,0.00018521,2]
[372077882,1752511871650,-370.0,0.00018579,2]
[372077883,1752511871659,-152.357551,0.00018606,2]
[372077884,1752511871669,-151.0,0.00018607,2]
[372077885,1752511871679,-740.0,0.00018613,2]
[372077886,1752511871689,-950.6024805,0.00018616,2]
[372077887,1752511871699,-965.0,0.00018626,2]
[372077888,1752511871709,-1083.34118715,0.0001863,2]
[372077889,1752511871719,-151.0,0.0001863,2]
[372077890,1752511871728,-151.0,0.0001863,2]
[372077891,1752511871739,-460.0,0.0001863,2]
[372077892,1752511871748,-460.0,0.0001863,2]
[372077893,1752511871758,-460.0,0.0001863,2]
[372077894,1752511871768,-460.0,0.0001863,2]
[372077895,1752511871777,-460.0,0.0001863,2]
[372077896,1752511871786,-460.0,0.0001863,2]
[372077897,1752511871796,-460.0,0.0001863,2]
[372077898,1752511871807,-460.0,0.0001863,2]
[372077899,1752511871817,-151.0,0.0001863,2]
[372077900,1752511871827,-460.0,0.0001863,2]
[372077901,1752511871837,-460.0,0.0001863,2]
[372077902,1752511871852,-460.0,0.0001863,2]
[372077903,1752511871861,-460.0,0.0001863,2]
[372077904,1752511871871,-460.0,0.0001863,2]
[372077905,1752511871882,-460.0,0.0001863,2]
[372077906,1752511871891,-460.0,0.0001863,2]
[372077907,1752511871901,-460.0,0.0001863,2]
[372077908,1752511871912,-460.0,0.0001863,2]
[372077909,1752511871923,-460.0,0.0001863,2]
[372077910,1752511871933,-460.0,0.0001863,2]
[372077911,1752511871943,-460.0,0.0001863,2]
[372077912,1752511871953,-460.0,0.0001863,2]
[372077913,1752511871962,-467.73325824,0.0001863,2]
[372077914,1752511871972,-185.76245554,0.0001863,2]
[372077915,1752511871981,-460.0,0.0001863,2]
[372077916,1752511871991,-460.0,0.0001863,2]
[372077917,1752511872000,-460.0,0.0001863,2]
[372077918,1752511872010,-469.5,0.0001863,2]
[372077919,1752511872019,-616.72,0.0001863,2]
[372077920,1752511872029,-704.19,0.0001863,2]
[372077921,1752511872041,-654.21,0.0001863,2]
[372077922,1752511872050,-460.0,0.0001863,2]
[372077923,1752511872060,-460.0,0.0001863,2]
[372077924,1752511872069,-460.0,0.0001863,2]
[372077925,1752511872079,-371.29404419,0.0001863,2]
[372077926,1752511872090,-460.0,0.0001863,2]
[372077927,1752511872102,-460.0,0.0001863,2]
[372077928,1752511872112,-952.71,0.0001863,2]
[372077929,1752511872121,-460.0,0.0001863,2]
[372077930,1752511872132,-460.0,0.0001863,2]
[372077931,1752511872142,-905.16,0.0001863,2]
[372077932,1752511872157,-460.0,0.0001863,2]
[372077933,1752511872167,-483.91,0.0001863,2]
[372077934,1752511872177,-460.0,0.0001863,2]
[372077935,1752511872187,-814.25,0.0001863,2]
[372077936,1752511872199,-2756.03,0.0001863,2]
[372077937,1752511872209,-1345.49,0.0001863,2]
[372077938,1752511872221,-466.59,0.0001863,2]
[372077939,1752511872231,-460.0,0.0001863,2]
[372077940,1752511872240,-460.0,0.0001863,2]
[372077941,1752511872248,-311.97,0.0001863,2]
[372077942,1752511872258,-460.0,0.0001863,2]
[372077943,1752511872267,-460.0,0.0001863,2]
[372077944,1752511872276,-995.66,0.0001863,2]
[372077945,1752511872285,-1769.62,0.0001863,2]
[372077946,1752511872294,-460.0,0.0001863,2]
[372077947,1752511872304,-1503.39,0.0001863,2]
[372077948,1752511872313,-460.0,0.0001863,2]
[372077949,1752511872325,-460.0,0.0001863,2]
[372077950,1752511872335,-3450.66,0.0001863,2]
[372077951,1752511872347,-460.0,0.0001863,2]
[372077952,1752511872357,-460.0,0.0001863,2]
[372077953,1752511872367,-460.0,0.0001863,2]
[372077954,1752511872377,-641.2,0.0001863,2]
[372077955,1752511872386,-984.75,0.0001863,2]
[372077956,1752511872398,-460.0,0.0001863,2]
[372077957,1752511872408,-866.96,0.0001863,2]
[372077958,1752511872417,-460.0,0.0001863,2]
[372077959,1752511872427,-460.0,0.0001863,2]
[372077960,1752511872437,-4200.38,0.0001863,2]
[372077961,1752511872445,-625.65,0.0001863,2]
[372077962,1752511872455,-460.0,0.0001863,2]
[372077963,1752511872464,-672.46,0.0001863,2]
[372077964,1752511872474,-460.0,0.0001863,2]
[372077965,1752511872483,-5352.17,0.0001863,2]
[372077966,1752511872493,-591.13,0.0001863,2]
[372077967,1752511872502,-833.0,0.0001863,2]
[372077968,1752511872511,-460.0,0.0001863,2]
[372077969,1752511872521,-460.0,0.0001863,2]
[372077970,1752511872530,-2751.45,0.0001863,2]
[372077971,1752511872540,-460.0,0.0001863,2]
[372077972,1752511872550,-1439.85,0.0001863,2]
[372077973,1752511872560,-460.0,0.0001863,2]
[372077974,1752511872569,-460.0,0.0001863,2]
[372077975,1752511872579,-460.0,0.0001863,2]
[372077976,1752511872588,-395.57180725,0.0001863,2]
[372077977,1752511872599,-460.0,0.0001863,2]
[372077978,1752511872608,-460.0,0.0001863,2]
[372077979,1752511872618,-598.81,0.0001863,2]
[372077980,1752511872627,-460.0,0.0001863,2]
[372077981,1752511872637,-1246.23,0.0001863,2]
[372077982,1752511872647,-460.0,0.0001863,2]
[372077983,1752511872656,-531.53,0.0001863,2]
[372077984,1752511872667,-875.62,0.0001863,2]
[372077985,1752511872677,-460.0,0.0001863,2]
[372077986,1752511872686,-582.85,0.0001863,2]
[372077987,1752511872696,-849.71,0.0001863,2]
[372077988,1752511872705,-460.0,0.0001863,2]
[372077989,1752511872715,-1219.66,0.0001863,2]
[372077990,1752511872725,-564.05,0.0001863,2]
[372077991,1752511872734,-1542.37,0.0001863,2]
[372077992,1752511872745,-460.34,0.0001863,2]
[372077993,1752511872754,-460.0,0.0001863,2]
[372077994,1752511872764,-627.62,0.0001863,2]
[372077995,1752511872774,-744.06,0.0001863,2]
[372077996,1752511872783,-460.0,0.0001863,2]
[372077997,1752511872793,-2096.82,0.0001863,2]
[372077998,1752511872802,-1495.21,0.0001863,2]
[372077999,1752511872812,-460.0,0.0001863,2]
[372078000,1752511872821,-460.0,0.0001863,2]
[372078001,1752511872830,-868.51,0.0001863,2]
[372078002,1752511872841,-460.0,0.0001863,2]
[372078003,1752511872855,-1975.74,0.0001863,2]
[372078004,1752511872864,-460.0,0.0001863,2]
[372078005,1752511872875,-617.02,0.0001863,2]
[372078006,1752511872891,-601.39,0.0001863,2]
[372078007,1752511872905,-460.0,0.0001863,2]
[372078008,1752511872919,-460.0,0.0001863,2]
[372078009,1752511872929,-460.0,0.0001863,2]
[372078010,1752511872940,-460.0,0.0001863,2]
[372078011,1752511872950,-648.25,0.0001863,2]
[372078012,1752511872961,-360.0,0.0001868,2]
[372078013,1752511872971,-370.0,0.00018715,2]
[372078014,1752511872980,-5929.22791842,0.00018728,2]
[372078015,1752511872990,-370.0,0.00018746,2]
[372078016,1752511873000,-1882.51399222,0.0001875,2]
[372078017,1752511873009,-370.0,0.00018766,2]
[372078018,1752511873019,-370.0,0.00018769,2]
[372078019,1752511873029,-965.0,0.00018772,2]
[372078020,1752511873039,-3311.27551762,0.00018788,2]
[372078021,1752511873049,-152.357551,0.00018817,3]
[372078022,1752511873059,-151.0,0.00018839,2]
[372078023,1752511873069,-598.255,0.00018873,2]
[372078024,1752511873078,-303.20009508,0.000189,2]
[372078025,1752511873088,-303.16369506,0.000189,2]
[372078026,1752511873101,-518.83161,0.00018904,2]
[372078027,1752511873111,-518.83161,0.00018904,2]
[372078028,1752511873121,-460.0,0.00018904,2]
[372078029,1752511873131,-363.71304995,0.00018904,2]
[372078030,1752511873142,-331.82,0.00018904,2]
[372078031,1752511873152,-460.0,0.00018904,2]
[372078032,1752511873163,-460.0,0.00018904,2]
[372078033,1752511873173,-460.0,0.00018904,2]
[372078034,1752511873183,-460.0,0.00018904,2]
[372078035,1752511873195,-460.0,0.00018904,2]
[372078036,1752511873205,-1069.42834345,0.00018904,2]
[372078037,1752511873216,-405.47188046,0.00018904,2]
[372078038,1752511873226,-460.0,0.00018904,2]
[372078039,1752511873236,-460.0,0.00018904,2]
[372078040,1752511873246,-460.0,0.00018904,2]
[372078041,1752511873257,-460.0,0.00018904,2]
[372078042,1752511873266,-460.0,0.00018904,2]
[372078043,1752511873276,-460.0,0.00018904,2]
[372078044,1752511873286,-460.0,0.00018904,2]
[372078045,1752511873297,-460.0,0.00018904,2]
[372078046,1752511873307,-460.0,0.00018904,2]
[372078047,1752511873317,-460.0,0.00018904,2]
[372078048,1752511873326,-460.0,0.00018904,2]
[372078049,1752511873337,-460.0,0.00018904,2]
[372078050,1752511873346,-469.5,0.00018904,2]
[372078051,1752511873362,-616.72,0.00018904,2]
[372078052,1752511873371,-704.19,0.00018904,2]
[372078053,1752511873381,-654.21,0.00018904,2]
[372078054,1752511873390,-460.0,0.00018904,2]
[372078055,1752511873399,-460.0,0.00018904,2]
[372078056,1752511873409,-362.12,0.00018904,2]
[372078057,1752511873418,-460.0,0.00018904,2]
[372078058,1752511873428,-460.0,0.00018904,2]
[372078059,1752511873437,-952.71,0.00018904,2]
[372078060,1752511873446,-460.0,0.00018904,2]
[372078061,1752511873455,-460.0,0.00018904,2]
[372078062,1752511873464,-905.16,0.00018904,2]
[372078063,1752511873473,-460.0,0.00018904,2]
[372078064,1752511873482,-483.91,0.00018904,2]
[372078065,1752511873491,-814.25,0.00018904,2]
[372078066,1752511873500,-2756.03,0.00018904,2]
[372078067,1752511873509,-1345.49,0.00018904,2]
[372078068,1752511873518,-466.59,0.00018904,2]
[372078069,1752511873528,-460.0,0.00018904,2]
[372078070,1752511873537,-460.0,0.00018904,2]
[372078071,1752511873547,-460.0,0.00018904,2]
[372078072,1752511873558,-460.0,0.00018904,2]
[372078073,1752511873568,-995.66,0.00018904,2]
[372078074,1752511873578,-1769.62,0.00018904,2]
[372078075,1752511873590,-460.0,0.00018904,2]
[372078076,1752511873601,-1503.39,0.00018904,2]
[372078077,1752511873612,-460.0,0.00018904,2]
[372078078,1752511873622,-3450.66,0.00018904,2]
[372078079,1752511873631,-460.0,0.00018904,2]
[372078080,1752511873642,-460.0,0.00018904,2]
[372078081,1752511873652,-460.0,0.00018904,2]
[372078082,1752511873665,-641.2,0.00018904,2]
[372078083,1752511873675,-984.75,0.00018904,2]
[372078084,1752511873685,-460.0,0.00018904,2]
[372078085,1752511873694,-460.0,0.00018904,2]
[372078086,1752511873703,-460.0,0.00018904,2]
[372078087,1752511873713,-4200.38,0.00018904,2]
[372078088,1752511873722,-866.96,0.00018904,2]
[372078089,1752511873732,-625.65,0.00018904,2]
[372078090,1752511873743,-460.0,0.00018904,2]
[372078091,1752511873752,-672.46,0.00018904,2]
[372078092,1752511873762,-460.0,0.00018904,2]
[372078093,1752511873772,-5352.17,0.00018904,2]
[372078094,1752511873781,-591.13,0.00018904,2]
[372078095,1752511873791,-833.0,0.00018904,2]
[372078096,1752511873801,-460.0,0.00018904,2]
[372078097,1752511873810,-460.0,0.00018904,2]
[372078098,1752511873820,-2751.45,0.00018904,2]
[372078099,1752511873830,-460.0,0.00018904,2]
[372078100,1752511873843,-1439.85,0.00018904,2]
[372078101,1752511873855,-460.0,0.00018904,2]
[372078102,1752511873865,-460.0,0.00018904,2]
[372078103,1752511873875,-345.11529403,0.00018904,2]
[372078104,1752511873886,-460.0,0.00018904,2]
[372078105,1752511873896,-598.81,0.00018904,2]
[372078106,1752511873907,-460.0,0.00018904,2]
[372078107,1752511873919,-1246.23,0.00018904,2]
[372078108,1752511873930,-460.0,0.00018904,2]
[372078109,1752511873940,-531.53,0.00018904,2]
[372078110,1752511873950,-875.62,0.00018904,2]
[372078111,1752511873960,-460.0,0.00018904,2]
[372078112,1752511873970,-151.0,0.00018904,2]
[372078113,1752511873979,-582.85,0.00018904,2]
[372078114,1752511873989,-849.71,0.00018904,2]
[372078115,1752511874001,-460.0,0.00018904,2]
[372078116,1752511874010,-1219.66,0.00018904,2]
[372078117,1752511874020,-564.05,0.00018904,2]
[372078118,1752511874029,-1542.37,0.00018904,2]
[372078119,1752511874039,-460.34,0.00018904,2]
[372078120,1752511874049,-460.0,0.00018904,2]
[372078121,1752511874059,-627.62,0.00018904,2]
[372078122,1752511874068,-460.0,0.00018904,2]
[372078123,1752511874079,-744.06,0.00018904,2]
[372078124,1752511874088,-2096.82,0.00018904,2]
[372078125,1752511874097,-1495.21,0.00018904,2]
[372078126,1752511874108,-460.0,0.00018904,2]
[372078127,1752511874117,-868.51,0.00018904,2]
[372078128,1752511874128,-461.57923151,0.00018904,2]
[372078129,1752511874138,-1975.74,0.00018904,2]
[372078130,1752511874147,-617.02,0.00018904,2]
[372078131,1752511874157,-601.39,0.00018904,2]
[372078132,1752511874167,-460.0,0.00018904,2]
[372078133,1752511874176,-460.0,0.00018904,2]
[372078134,1752511874187,-460.0,0.00018904,2]
[372078135,1752511874197,-460.0,0.00018904,2]
[372078136,1752511874207,-648.25,0.00018904,2]
[372078137,1752511874216,-714.48717,0.00018941,2]
[372078138,1752511874227,-180.09905448,0.00018944,2]
[372078139,1752511874237,-158.856472,0.00018972,7]
[372078140,1752511874247,-1026.0,0.00018997,2]
[372078141,1752511874257,-14304.87586903,0.00019,2]
[372078142,1752511874528,-2446.75770144,0.00019,2]
[372078143,1752511874540,-14347.36642953,0.00019,2]
[372078144,1752511874551,-151.0,0.00019,2]
[372078145,1752511874561,-151.0,0.00019,2]
[372078146,1752511874571,-217.461938,0.00019,2]
[372078147,1752511874581,-217.461938,0.00019,2]
[372078148,1752511874590,-315.889574,0.00019,2]
[372078149,1752511874602,-315.889574,0.00019,2]
[372078150,1752511874612,-5929.22791842,0.00019003,2]
[372078151,1752511874622,-151.0,0.00019071,3]
[372078152,1752511874632,-151.0,0.00019072,2]
[372078153,1752511874642,-151.0,0.00019072,2]
[372078154,1752511874651,-151.0,0.00019072,2]
[372078155,1752511874661,-151.0,0.00019072,2]
[372078156,1752511874670,-303.20009508,0.00019089,2]
[372078157,1752511874679,-303.16369506,0.00019089,2]
[372078158,1752511874689,-965.0,0.0001909,2]
[372078159,1752511874699,-20.17255031,0.00019094,2]
[372078160,1752511874711,-944.82744969,0.00019094,2]
[372078161,1752511874720,-317.0,0.00019109,2]
[372078162,1752511874730,-151.0,0.00019178,2]
[372078163,1752511874740,-151.0,0.00019178,2]
[372078164,1752511874750,-285.077567,0.00019178,2]
[372078165,1752511874760,-460.0,0.00019178,2]
[372078166,1752511874770,-460.0,0.00019178,2]
[372078167,1752511874779,-460.0,0.00019178,2]
[372078168,1752511874789,-460.0,0.00019178,2]
[372078169,1752511874799,-460.0,0.00019178,2]
[372078170,1752511874809,-460.0,0.00019178,2]
[372078171,1752511874819,-460.0,0.00019178,2]
[372078172,1752511874829,-151.0,0.00019178,2]
[372078173,1752511874839,-151.0,0.00019178,2]
[372078174,1752511874855,-500.0,0.00019178,2]
[372078175,1752511874865,-265.12,0.00019178,2]
[372078176,1752511874876,-151.0,0.00019178,2]
[372078177,1752511874886,-151.0,0.00019178,2]
[372078178,1752511874897,-460.0,0.00019178,2]
[372078179,1752511874907,-460.0,0.00019178,2]
[372078180,1752511874917,-460.0,0.00019178,2]
[372078181,1752511874928,-151.0,0.00019178,2]
[372078182,1752511874938,-460.0,0.00019178,2]
[372078183,1752511874947,-460.0,0.00019178,2]
[372078184,1752511874957,-460.0,0.00019178,2]
[372078185,1752511874967,-460.0,0.00019178,2]
[372078186,1752511874976,-460.0,0.00019178,2]
[372078187,1752511874986,-400.00000033,0.00019178,2]
[372078188,1752511874996,-460.0,0.00019178,2]
[372078189,1752511875006,-460.0,0.00019178,2]
[372078190,1752511875015,-460.0,0.00019178,2]
[372078191,1752511875025,-460.0,0.00019178,2]
[372078192,1752511875035,-460.0,0.00019178,2]
[372078193,1752511875044,-469.5,0.00019178,2]
[372078194,1752511875053,-616.72,0.00019178,2]
[372078195,1752511875063,-704.19,0.00019178,2]
[372078196,1752511875073,-654.21,0.00019178,2]
[372078197,1752511875083,-460.0,0.00019178,2]
[372078198,1752511875092,-445.80564149,0.00019178,2]
[372078199,1752511875106,-14.19435851,0.00019178,2]
[372078200,1752511875116,-460.0,0.00019178,2]
[372078201,1752511875126,-460.0,0.00019178,2]
[372078202,1752511875135,-952.71,0.00019178,2]
[372078203,1752511875145,-460.0,0.00019178,2]
[372078204,1752511875155,-460.0,0.00019178,2]
[372078205,1752511875165,-905.16,0.00019178,2]
[372078206,1752511875174,-460.0,0.00019178,2]
[372078207,1752511875184,-483.91,0.00019178,2]
[372078208,1752511875194,-814.25,0.00019178,2]
[372078209,1752511875204,-2756.03,0.00019178,2]
[372078210,1752511875214,-1345.49,0.00019178,2]
[372078211,1752511875223,-466.59,0.00019178,2]
[372078212,1752511875232,-460.0,0.00019178,2]
[372078213,1752511875242,-460.0,0.00019178,2]
[372078214,1752511875251,-415.72,0.00019178,2]
[372078215,1752511875261,-460.0,0.00019178,2]
[372078216,1752511875271,-995.66,0.00019178,2]
[372078217,1752511875280,-1769.62,0.00019178,2]
[372078218,1752511875289,-1503.39,0.00019178,2]
[372078219,1752511875299,-460.0,0.00019178,2]
[372078220,1752511875308,-3450.66,0.00019178,2]
[372078221,1752511875318,-460.0,0.00019178,2]
[372078222,1752511875328,-641.2,0.00019178,2]
[372078223,1752511875337,-984.75,0.00019178,2]
[372078224,1752511875347,-460.0,0.00019178,2]
[372078225,1752511875359,-460.0,0.00019178,2]
[372078226,1752511875368,-4200.38,0.00019178,2]
[372078227,1752511875378,-866.96,0.00019178,2]
[372078228,1752511875387,-625.65,0.00019178,2]
[372078229,1752511875398,-460.0,0.00019178,2]
[372078230,1752511875408,-672.46,0.00019178,2]
[372078231,1752511875418,-460.0,0.00019178,2]
[372078232,1752511875428,-5352.17,0.00019178,2]
[372078233,1752511875438,-591.13,0.00019178,2]
[372078234,1752511875448,-833.0,0.00019178,2]
[372078235,1752511875458,-2751.45,0.00019178,2]
[372078236,1752511875468,-460.0,0.00019178,2]
[372078237,1752511875477,-1439.85,0.00019178,2]
[372078238,1752511875486,-409.41813679,0.00019178,2]
[372078239,1752511875496,-460.0,0.00019178,2]
[372078240,1752511875507,-511.07453528,0.00019178,2]
[372078241,1752511875516,-598.81,0.00019178,2]
[372078242,1752511875526,-460.0,0.00019178,2]
[372078243,1752511875535,-1246.23,0.00019178,2]
[372078244,1752511875545,-460.0,0.00019178,2]
[372078245,1752511875554,-531.53,0.00019178,2]
[372078246,1752511875564,-875.62,0.00019178,2]
[372078247,1752511875573,-460.0,0.00019178,2]
[372078248,1752511875583,-582.85,0.00019178,2]
[372078249,1752511875593,-849.71,0.00019178,2]
[372078250,1752511875605,-460.0,0.00019178,2]
[372078251,1752511875615,-1219.66,0.00019178,2]
[372078252,1752511875625,-564.05,0.00019178,2]
[372078253,1752511875634,-1542.37,0.00019178,2]
[372078254,1752511875644,-460.34,0.00019178,2]
[372078255,1752511875654,-460.0,0.00019178,2]
[372078256,1752511875663,-627.62,0.00019178,2]
[372078257,1752511875673,-460.0,0.00019178,2]
[372078258,1752511875683,-744.06,0.00019178,2]
[372078259,1752511875693,-2096.82,0.00019178,2]
[372078260,1752511875703,-1495.21,0.00019178,2]
[372078261,1752511875712,-124.8714391,0.00019178,2]
[372078262,1752511877528,177.0,0.00025373,60]
[372078264,1752511891107,200.0,0.00025449,120]
[372078267,1752511955002,200.0,0.00024503,120]
[372078270,1752512000200,1829.663076,0.00027397,120]
[372078271,1752512012635,200.0,0.00024411,120]
[372078274,1752512037193,600.0,0.0001611,2]
[372078275,1752512068126,438.0,0.00021908,120]
[372078276,1752512068589,438.0,0.00021898,120]
[372078277,1752512069208,438.0,0.00021888,120]
[372078278,1752512069671,438.0,0.0002252,120]
[372078279,1752512070155,438.0,0.0002251,120]
[372078280,1752512070615,438.0,0.000225,120]
[372078281,1752512071232,438.0,0.0002278,120]
[372078282,1752512071547,200.0,0.00026479,120]
[372078283,1752512071711,438.0,0.0002277,120]
[372078284,1752512072173,438.0,0.0002489,120]
[372078285,1752512072689,443.67,0.0002488,120]
[372078286,1752512099858,1700.67418673,0.000222,69]
[372078290,1752512104831,1700.6741867,0.000222,69]
[372078294,1752512109864,1700.6741867,0.000222,69]
[372078296,1752512114910,1700.6741867,0.000222,69]
[372078297,1752512119912,1700.6741867,0.0002378,76]